fUST/lending_fUST_20240611
["ID","MTS","AMOUNT","RATE_DAILY","PERIOD"]
[329092631,1718100642456,-500.0,0.00021917,2]
[329092633,1718100642466,-602.65210459,0.00021917,2]
[329092635,1718100642477,-501.89900023,0.00021917,2]
[329092637,1718100642488,-500.0,0.00021917,2]
[329092640,1718100642499,-500.0,0.00021917,2]
[329092642,1718100642510,-500.0,0.00021917,2]
[329092644,1718100642520,-502.47805445,0.00021917,2]
[329092646,1718100642530,-500.0,0.00021917,2]
[329092648,1718100642541,-523.83410348,0.00021917,2]
[329092650,1718100642551,-500.0,0.00021917,2]
[329092652,1718100642562,-500.0,0.00021917,2]
[329092654,1718100642572,-500.0,0.00021917,2]
[329092656,1718100642582,-500.0,0.00021917,2]
[329092658,1718100642594,-343.79011506,0.00021917,2]
[329092659,1718100642605,-503.42359992,0.00021917,2]
[329092660,1718100642615,-500.0,0.00021917,2]
[329092661,1718100642625,-500.0,0.00021917,2]
[329092662,1718100642636,-500.0,0.00021917,2]
[329092663,1718100642646,-500.0,0.00021917,4]
[329092664,1718100642657,-500.0,0.00021917,2]
[329092665,1718100642667,-500.0,0.00021917,2]
[329092666,1718100642678,-500.0,0.00021917,2]
[329092667,1718100642689,-500.0,0.00021917,2]
[329092668,1718100642700,-500.0,0.00021917,2]
[329092670,1718100642710,-500.0,0.00021917,2]
[329092671,1718100642721,-500.0,0.00021917,2]
[329092672,1718100642731,-503.87656587,0.00021917,2]
[329092673,1718100642742,-500.0,0.00021917,2]
[329092674,1718100642753,-500.0,0.00021917,2]
[329092676,1718100642764,-500.0,0.00021917,2]
[329092677,1718100642775,-153.94324272,0.00021917,2]
[329092678,1718100642787,-114.8437454,0.00021917,2]
[329092695,1718100643213,-40.48535201,0.00021917,2]
[329092696,1718100643234,-344.67090259,0.00021917,2]
[329092697,1718100643245,-500.0,0.00021917,2]
[329092699,1718100643256,-500.0,0.00021917,2]
[329092700,1718100643267,-208.92389019,0.00021917,2]
[329092701,1718100643284,-291.07610981,0.00021917,2]
[329092702,1718100643295,-500.0,0.00021917,2]
[329092704,1718100643313,-500.0,0.00021917,2]
[329092705,1718100643324,-500.0,0.00021917,2]
[329092706,1718100643334,-500.0,0.00021917,2]
[329092707,1718100643345,-500.0,0.00021917,2]
[329092709,1718100643355,-500.0,0.00021917,2]
[329092711,1718100643366,-501.51972479,0.00021917,2]
[329092712,1718100643377,-500.0,0.00021917,2]
[329092713,1718100643389,-500.0,0.00021917,2]
[329092714,1718100643399,-505.96727161,0.00021917,2]
[329092715,1718100643410,-500.0,0.00021917,2]
[329092717,1718100643420,-502.82200852,0.00021917,2]
[329092718,1718100643433,-500.0,0.00021917,2]
[329092719,1718100643443,-500.0,0.00021917,2]
[329092720,1718100643454,-500.0,0.00021917,2]
[329092721,1718100643464,-196.16288426,0.00021917,2]
[329092722,1718100643474,-500.0,0.00021917,2]
[329092723,1718100643484,-540.39361235,0.00021917,2]
[329092724,1718100643494,-500.0,0.00021917,2]
[329092725,1718100643504,-500.0,0.00021917,2]
[329092726,1718100643514,-500.0,0.00021917,2]
[329092727,1718100643524,-500.0,0.00021917,2]
[329092728,1718100643534,-500.0,0.00021917,2]
[329092730,1718100643546,-399.55297499,0.00021917,2]
[329092731,1718100643557,-500.0,0.00021917,2]
[329092732,1718100643567,-500.0,0.00021917,2]
[329092733,1718100643577,-429.4292057,0.00021917,2]
[329092734,1718100643595,-70.5707943,0.00021917,2]
[329092735,1718100643605,-500.0,0.00021917,2]
[329092736,1718100643614,-504.44333306,0.00021917,2]
[329092737,1718100643624,-500.0,0.00021917,2]
[329092738,1718100643634,-500.0,0.00021917,2]
[329092739,1718100643644,-500.0,0.00021917,2]
[329092740,1718100643654,-500.0,0.00021917,2]
[329092741,1718100643664,-588.91,0.00021917,2]
[329092742,1718100643674,-186.00261143,0.00021917,2]
[329092743,1718100643686,-500.0,0.00021917,2]
[329092744,1718100643696,-500.0,0.00021917,2]
[329092745,1718100643710,-500.0,0.00021917,2]
[329092746,1718100643721,-500.0,0.00021917,2]
[329092747,1718100643731,-500.0,0.00021917,2]
[329092748,1718100643742,-500.0,0.00021917,2]
[329092749,1718100643752,-500.0,0.00021917,2]
[329092750,1718100643763,-240.56766423,0.00021917,2]
[329092751,1718100643774,-500.0,0.00021917,2]
[329092752,1718100643785,-500.0,0.00021917,2]
[329092753,1718100643795,-500.0,0.00021917,2]
[329092754,1718100643806,-500.0,0.00021917,2]
[329092755,1718100643817,-500.0,0.00021917,2]
[329092756,1718100643827,-500.0,0.00021917,2]
[329092757,1718100643838,-500.0,0.00021917,2]
[329092758,1718100643849,-395.63674927,0.00021917,2]
[329092759,1718100643859,-500.0,0.00021917,2]
[329092760,1718100643868,-289.84087858,0.00021917,2]
[329092761,1718100643879,-500.0,0.00021917,2]
[329092762,1718100643889,-500.0,0.00021917,2]
[329092763,1718100643899,-500.0,0.00021917,2]
[329092764,1718100643910,-500.0,0.00021917,2]
[329092765,1718100643921,-500.0,0.00021917,2]
[329092766,1718100643934,-508.40819592,0.00021917,2]
[329092767,1718100643944,-372.36696619,0.00021917,2]
[329092768,1718100643954,-500.0,0.00021917,2]
[329092769,1718100643964,-500.0,0.00021917,2]
[329092770,1718100643974,-500.0,0.00021917,2]
[329092771,1718100643985,-500.0,0.00021917,2]
[329092772,1718100643995,-501.94960182,0.00021917,2]
[329092774,1718100644006,-500.0,0.00021917,2]
[329092775,1718100644017,-500.0,0.00021917,2]
[329092776,1718100644028,-348.56717671,0.00021917,2]
[329092777,1718100644039,-500.0,0.00021917,2]
[329092778,1718100644049,-500.0,0.00021917,2]
[329092780,1718100644060,-500.0,0.00021917,2]
[329092782,1718100644070,-500.0,0.00021917,2]
[329092783,1718100644081,-1114.65,0.00021917,2]
[329092784,1718100644092,-500.0,0.00021917,2]
[329092785,1718100644102,-500.0,0.00021917,2]
[329092786,1718100644112,-521.32724151,0.00021917,2]
[329092787,1718100644124,-500.0,0.00021917,2]
[329092788,1718100644134,-151.0,0.00021917,2]
[329092789,1718100644148,-500.0,0.00021917,2]
[329092790,1718100644160,-500.0,0.00021917,2]
[329092791,1718100644170,-500.0,0.00021917,2]
[329092792,1718100644183,-500.0,0.00021917,2]
[329092793,1718100644193,-500.0,0.00021917,2]
[329092794,1718100644203,-500.0,0.00021917,2]
[329092796,1718100644220,-500.0,0.00021917,2]
[329092798,1718100644231,-1148.15,0.00021917,2]
[329092799,1718100644241,-500.0,0.00021917,2]
[329092800,1718100644251,-500.0,0.00021917,2]
[329092801,1718100644262,-500.0,0.00021917,2]
[329092802,1718100644276,-500.0,0.00021917,2]
[329092803,1718100644291,-152.569092,0.00021917,2]
[329092804,1718100644309,-500.0,0.00021917,2]
[329092805,1718100644325,-500.0,0.00021917,2]
[329092806,1718100644338,-500.0,0.00021917,2]
[329092807,1718100644352,-500.0,0.00021917,2]
[329092808,1718100644366,-151.0,0.00021917,2]
[329092809,1718100644382,-500.0,0.00021917,2]
[329092810,1718100644396,-500.0,0.00021917,2]
[329092811,1718100644411,-500.0,0.00021917,2]
[329092812,1718100644427,-500.0,0.00021917,2]
[329092813,1718100644443,-500.0,0.00021917,2]
[329092814,1718100644458,-225.030654,0.00021917,2]
[329092815,1718100644472,-500.0,0.00021917,2]
[329092816,1718100644486,-225.030654,0.00021917,2]
[329092817,1718100644499,-1004.33,0.00021917,2]
[329092818,1718100644513,-182.62665212,0.00021917,2]
[329092819,1718100644527,-500.0,0.00021917,2]
[329092820,1718100644540,-500.0,0.00021917,2]
[329092821,1718100644554,-500.0,0.00021917,2]
[329092822,1718100644565,-813.15,0.00021917,2]
[329092823,1718100644578,-500.0,0.00021917,2]
[329092824,1718100644591,-500.0,0.00021917,2]
[329092825,1718100644604,-500.0,0.00021917,2]
[329092826,1718100644620,-500.0,0.00021917,2]
[329092827,1718100644635,-500.0,0.00021917,2]
[329092828,1718100644650,-500.0,0.00021917,2]
[329092829,1718100644664,-450.47709351,0.00021917,2]
[329092830,1718100644680,-500.0,0.00021917,2]
[329092831,1718100644696,-500.0,0.00021917,2]
[329092832,1718100644709,-151.0,0.00021917,2]
[329092833,1718100644720,-500.0,0.00021917,2]
[329092834,1718100644732,-500.0,0.00021917,2]
[329092835,1718100644744,-500.0,0.00021917,2]
[329092836,1718100644758,-500.0,0.00021917,2]
[329092837,1718100644771,-500.0,0.00021917,2]
[329092838,1718100644786,-500.0,0.00021917,2]
[329092839,1718100644798,-500.0,0.00021917,2]
[329092840,1718100644811,-500.0,0.00021917,2]
[329092841,1718100644825,-529.1,0.00021917,2]
[329092842,1718100644838,-500.0,0.00021917,2]
[329092843,1718100644851,-500.0,0.00021917,2]
[329092844,1718100644863,-151.0,0.00021917,2]
[329092845,1718100644876,-500.0,0.00021917,2]
[329092846,1718100644888,-151.0,0.00021917,2]
[329092847,1718100644900,-399.50855413,0.00021917,2]
[329092848,1718100644919,-100.49144587,0.00021917,2]
[329092849,1718100644933,-336.90799258,0.00021917,2]
[329092850,1718100644949,-163.09200742,0.00021917,2]
[329092851,1718100644962,-500.0,0.00021917,2]
[329092852,1718100644975,-3053.12,0.00021917,2]
[329092853,1718100644988,-500.0,0.00021917,2]
[329092854,1718100645001,-500.0,0.00021917,2]
[329092855,1718100645014,-500.0,0.00021917,2]
[329092856,1718100645026,-500.0,0.00021917,2]
[329092857,1718100645039,-500.0,0.00021917,2]
[329092858,1718100645052,-151.0,0.00021917,2]
[329092859,1718100645064,-500.0,0.00021917,2]
[329092860,1718100645077,-429.0637712,0.00021917,2]
[329092861,1718100645090,-500.0,0.00021917,2]
[329092862,1718100645102,-151.0,0.00021917,2]
[329092863,1718100645116,-500.0,0.00021917,2]
[329092864,1718100645129,-1985.58788902,0.00021917,2]
[329092865,1718100645342,-2646.59209662,0.00021663,2]
[329092866,1718100645357,-13508.57211098,0.00021917,2]
[329092867,1718100645371,-500.0,0.00021917,2]
[329092868,1718100645383,-2313.94,0.00021917,2]
[329092869,1718100645396,-500.0,0.00021917,2]
[329092870,1718100645408,-500.0,0.00021917,2]
[329092871,1718100645421,-151.0,0.00021917,2]
[329092872,1718100645434,-500.0,0.00021917,2]
[329092873,1718100645447,-500.0,0.00021917,2]
[329092874,1718100645460,-151.0,0.00021917,2]
[329092875,1718100645473,-500.0,0.00021917,2]
[329092876,1718100645486,-1606.55,0.00021917,2]
[329092877,1718100645500,-177.681908,0.00021917,2]
[329092878,1718100645511,-500.0,0.00021917,2]
[329092879,1718100645522,-500.0,0.00021917,2]
[329092880,1718100645532,-500.0,0.00021917,2]
[329092881,1718100645543,-597.26,0.00021917,2]
[329092882,1718100645554,-504.95685484,0.00021917,2]
[329092883,1718100645565,-2108.26,0.00021917,2]
[329092884,1718100645576,-500.0,0.00021917,2]
[329092885,1718100645726,-151.0,0.00021917,2]
[329092886,1718100645738,-500.0,0.00021917,2]
[329092887,1718100645749,-500.0,0.00021917,2]
[329092888,1718100645760,-151.0,0.00021917,2]
[329092889,1718100645772,-500.11596625,0.00021917,2]
[329092891,1718100645799,-646.78222052,0.00021917,2]
[329092892,1718100645812,-791.80181323,0.00021917,2]
[329092894,1718100645824,-502.43667258,0.00021917,2]
[329092895,1718100645836,-151.0,0.00021917,2]
[329092896,1718100645846,-292.92614782,0.00021917,2]
[329092897,1718100645857,-500.0,0.00021917,2]
[329092898,1718100645867,-500.0,0.00021917,2]
[329092899,1718100645878,-504.13251582,0.00021917,2]
[329092900,1718100645891,-500.0,0.00021917,2]
[329092901,1718100645901,-500.0,0.00021917,2]
[329092902,1718100645912,-500.0,0.00021917,2]
[329092903,1718100645923,-500.0,0.00021917,2]
[329092904,1718100645937,-219.79078929,0.00021917,2]
[329092905,1718100645950,-500.0,0.00021917,2]
[329092906,1718100645962,-500.0,0.00021917,2]
[329092908,1718100645975,-500.0,0.00021917,2]
[329092909,1718100645986,-501.68160764,0.00021917,2]
[329092910,1718100645997,-500.0,0.00021917,2]
[329092911,1718100646007,-505.08926821,0.00021917,2]
[329092912,1718100646018,-500.0,0.00021917,2]
[329092913,1718100646029,-500.0,0.00021917,2]
[329092914,1718100646039,-500.0,0.00021917,2]
[329092915,1718100646050,-500.0,0.00021917,2]
[329092916,1718100646060,-500.0,0.00021917,2]
[329092917,1718100646071,-500.0,0.00021917,2]
[329092918,1718100646081,-500.0,0.00021917,2]
[329092919,1718100646092,-500.0,0.00021917,2]
[329092921,1718100646104,-500.0,0.00021917,2]
[329092923,1718100646114,-500.0,0.00021917,2]
[329092925,1718100646125,-2940.4,0.00021917,2]
[329092926,1718100646136,-500.0,0.00021917,2]
[329092927,1718100646149,-500.0,0.00021917,2]
[329092928,1718100646160,-500.0,0.00021917,2]
[329092929,1718100646170,-500.0,0.00021917,2]
[329092930,1718100646183,-500.0,0.00021917,2]
[329092931,1718100646194,-1170.86,0.00021917,2]
[329092932,1718100646205,-232.14405161,0.00021917,2]
[329092933,1718100646215,-500.0,0.00021917,2]
[329092934,1718100646227,-500.0,0.00021917,2]
[329092935,1718100646238,-500.0,0.00021917,2]
[329092936,1718100646249,-500.0,0.00021917,2]
[329092937,1718100646259,-500.0,0.00021917,2]
[329092938,1718100646270,-500.0,0.00021917,2]
[329092939,1718100646281,-500.0,0.00021917,2]
[329092940,1718100646292,-500.0,0.00021917,2]
[329092941,1718100646316,-500.0,0.00021917,2]
[329092942,1718100646327,-151.0,0.00021917,2]
[329092943,1718100646338,-352.514454,0.00021917,2]
[329092944,1718100646349,-500.0,0.00021917,2]
[329092945,1718100646359,-500.0,0.00021917,2]
[329092946,1718100646370,-307.35508,0.00021917,2]
[329092947,1718100646380,-352.514454,0.00021917,2]
[329092948,1718100646390,-235.66655969,0.00021917,2]
[329092949,1718100646401,-500.0,0.00021917,2]
[329092950,1718100646411,-151.0,0.00021917,2]
[329092951,1718100646422,-307.35508,0.00021917,2]
[329092952,1718100646435,-500.0,0.00021917,2]
[329092953,1718100646445,-500.0,0.00021917,2]
[329092954,1718100646455,-500.0,0.00021917,2]
[329092955,1718100646466,-509.45263125,0.00021917,2]
[329092956,1718100646476,-502.83063486,0.00021917,2]
[329092957,1718100646487,-732.3,0.00021917,2]
[329092958,1718100646497,-208.68927715,0.00021917,2]
[329092959,1718100646557,-291.31072285,0.00021917,2]
[329092960,1718100646568,-42.54146977,0.00021917,2]
[329092993,1718101256092,526.5926666,9.999e-05,2]
[329092995,1718101399436,1995.26462774,9.999e-05,2]
[329092997,1718101607324,2666.76373697,9.999e-05,2]
[329093012,1718101732923,9944.65150095,9.999e-05,2]
[329093022,1718101795487,162.19727791,9.999e-05,2]
[329093023,1718101795530,765.44214177,9.999e-05,2]
[329093024,1718101818665,1442.34664303,9.999e-05,2]
[329093025,1718101828461,317.55665125,9.999e-05,2]
[329093090,1718101833477,-476.14397417,0.000156,2]
[329093092,1718101833490,-13.25688989,0.000156,2]
[329093094,1718101833500,-16824.32387793,0.00018036,2]
[329093097,1718101833522,-462.228,0.00018036,2]
[329093102,1718101833576,-3000.0,0.00018036,2]
[329093106,1718101833590,-21826.02029953,0.00018036,2]
[329093108,1718101833601,-33778.83714975,0.00018036,2]
[329093258,1718101842251,-12632.18371112,0.00018035,2]
[329093260,1718101842265,-7832.475985,0.00018035,2]
[329093262,1718101842281,-23444.86641463,0.00018035,2]
[329093265,1718101842293,-7104.81406439,0.00018035,2]
[329093267,1718101842306,-8577.96372325,0.00018035,2]
[329093269,1718101842318,-10986.96221418,0.00018036,2]
[329093352,1718101845431,-280.86267126,0.00018034,2]
[329093353,1718101845496,-559.8167678,0.00018034,2]
[329093354,1718101845507,-1876.59117231,0.00018036,2]
[329093355,1718101845520,-2114.12320999,0.00018037,2]
[329093356,1718101845531,-2682.75928745,0.00018037,2]
[329093357,1718101845542,-1877.1524641,0.00018038,2]
[329093358,1718101845556,-929.0489554,0.00018039,2]
[329093359,1718101845567,-1443.99211626,0.00018361,2]
[329093360,1718101845577,-19313.15373324,0.00018362,2]
[329093362,1718101845588,-3072.52405226,0.00018363,2]
[329093364,1718101845598,-1344.41295828,0.00018363,2]
[329093366,1718101845609,-1342.59061452,0.00018363,2]
[329093367,1718101845619,-927.63941968,0.00018363,2]
[329093369,1718101845632,-1149.38250893,0.00018363,2]
[329093371,1718101845642,-200.33886083,0.00018363,2]
[329093373,1718101845653,-155.01550155,0.00018364,2]
[329093375,1718101845663,-1160.24401511,0.00018365,2]
[329093377,1718101845673,-7318.3920724,0.00018368,2]
[329093379,1718101845683,-187.30709366,0.00018465,2]
[329093391,1718101845807,-2513.5332157,0.00018466,2]
[329093392,1718101845817,-311.05587966,0.000189,2]
[329093393,1718101845828,-208.0,0.00018958,2]
[329093394,1718101845838,-2642.16842245,0.00019332,2]
[329093395,1718101845848,-220.6921017,0.00019337,2]
[329093396,1718101845859,-208.0,0.00019449,2]
[329093397,1718101845870,-2433.24006747,0.00019507,2]
[329093398,1718101845881,-254.71998944,0.00019511,2]
[329093399,1718101845891,-447.177922,0.00019512,2]
[329093400,1718101845902,-1160.24401508,0.00019584,2]
[329093401,1718101845912,-208.0,0.00019941,2]
[329093402,1718101845923,-2012.16898147,0.0002,4]
[329093403,1718101845933,-529.07913635,0.0002,4]
[329093404,1718101845942,-2096.44122688,0.0002,7]
[329093405,1718101845952,-225.1695884,0.0002,2]
[329093406,1718101845962,-411.5321918,0.00020168,2]
[329093407,1718101845972,-242.38087524,0.00020168,2]
[329093408,1718101845982,-660.11978951,0.00020169,2]
[329093409,1718101845992,-208.0,0.00020432,2]
[329093410,1718101846002,-1160.24401508,0.00020804,2]
[329093411,1718101846011,-208.0,0.00020924,2]
[329093412,1718101846023,-722.67,0.0002099,3]
[329093413,1718101846033,-383.16,0.0002099,3]
[329093414,1718101846043,-726.18,0.0002099,3]
[329093415,1718101846054,-692.46643816,0.00020999,2]
[329093416,1718101846063,-30822.36777571,0.00021,2]
[329093417,1718101846074,-722.67,0.00021386,3]
[329093418,1718101846083,-208.0,0.00021415,2]
[329093419,1718101846093,-322.59501723,0.00021562,2]
[329093420,1718101846104,-322.59501722,0.00021626,2]
[329093421,1718101846113,-204.10433477,0.00021663,2]
[329093423,1718101846123,-286.58506874,0.00021663,2]
[329093425,1718101846133,-573.4,0.00021665,3]
[329093427,1718101846143,-322.59501722,0.0002169,2]
[329093429,1718101846153,-322.59501722,0.00021753,2]
[329093431,1718101846163,-500.0,0.00021815,2]
[329093433,1718101846173,-500.0,0.00021815,2]
[329093435,1718101846184,-500.0,0.00021815,2]
[329093437,1718101846194,-500.0,0.00021815,2]
[329093439,1718101846205,-500.0,0.00021815,2]
[329093441,1718101846215,-500.0,0.00021815,2]
[329093443,1718101846225,-500.0,0.00021815,2]
[329093445,1718101846237,-500.0,0.00021815,2]
[329093447,1718101846247,-500.0,0.00021815,2]
[329093449,1718101846257,-500.0,0.00021815,2]
[329093451,1718101846268,-500.0,0.00021815,2]
[329093453,1718101846278,-600.87673776,0.00021815,2]
[329093455,1718101846289,-500.0,0.00021815,2]
[329093457,1718101846300,-500.0,0.00021815,2]
[329093459,1718101846311,-500.0,0.00021815,2]
[329093461,1718101846321,-500.0,0.00021815,2]
[329093463,1718101846332,-774.49408999,0.00021816,2]
[329093465,1718101846342,-16169.10184222,0.00021817,15]
[329093467,1718101846353,-88888.0,0.00021817,3]
[329093469,1718101846363,-2000.0,0.00021817,2]
[329093471,1718101846374,-322.59501722,0.00021817,2]
[329093473,1718101846385,-4239.70515949,0.00021853,2]
[329093474,1718101846396,-208.0,0.00021906,3]
[329093475,1718101846406,-2034.88321937,0.00021915,2]
[329093476,1718101846417,-280.54111953,0.00021915,2]
[329093478,1718101846427,-11147.9583799,0.00021917,15]
[329093480,1718101846438,-13483.94434315,0.00021917,2]
[329093482,1718101846448,-124483.15017925,0.00021917,2]
[329093484,1718101846459,-500.0,0.00021917,2]
[329093486,1718101846469,-502.50421856,0.00021917,2]
[329093488,1718101846480,-500.0,0.00021917,2]
[329093490,1718101846491,-549.37275222,0.00021917,2]
[329093492,1718101846503,-500.0,0.00021917,4]
[329093494,1718101846513,-513.73701891,0.00021917,2]
[329093496,1718101846524,-500.0,0.00021917,2]
[329093498,1718101846533,-407.34114668,0.00021917,2]
[329093500,1718101846547,-500.0,0.00021917,2]
[329093502,1718101846559,-500.0,0.00021917,2]
[329093504,1718101846569,-500.0,0.00021917,2]
[329093506,1718101846582,-500.0,0.00021917,2]
[329093508,1718101846594,-500.0,0.00021917,2]
[329093510,1718101846605,-500.0,0.00021917,2]
[329093512,1718101846615,-501.83515497,0.00021917,2]
[329093514,1718101846628,-500.0,0.00021917,2]
[329093516,1718101846639,-268.75111322,0.00021917,2]
[329093518,1718101846650,-500.0,0.00021917,2]
[329093520,1718101846661,-555.04581803,0.00021917,2]
[329093522,1718101846673,-500.48581395,0.00021917,2]
[329093524,1718101846683,-505.03802978,0.00021917,2]
[329093526,1718101846694,-364.17089129,0.00021917,2]
[329093528,1718101846705,-500.0,0.00021917,2]
[329093530,1718101846720,-500.0,0.00021917,2]
[329093532,1718101846731,-502.65397186,0.00021917,2]
[329093534,1718101846742,-500.0,0.00021917,2]
[329093536,1718101846752,-500.0,0.00021917,2]
[329093538,1718101846763,-500.0,0.00021917,2]
[329093540,1718101846775,-502.27060133,0.00021917,2]
[329093541,1718101846786,-501.20372779,0.00021917,2]
[329093542,1718101846797,-500.0,0.00021917,2]
[329093543,1718101846809,-590.00910574,0.00021917,2]
[329093545,1718101846820,-500.0,0.00021917,2]
[329093547,1718101846831,-501.39424638,0.00021917,2]
[329093549,1718101846841,-500.0,0.00021917,2]
[329093550,1718101846853,-500.0,0.00021917,2]
[329093552,1718101846865,-500.0,0.00021917,2]
[329093554,1718101846876,-502.44112935,0.00021917,2]
[329093556,1718101846886,-500.0,0.00021917,2]
[329093558,1718101846897,-500.0,0.00021917,2]
[329093560,1718101846909,-513.23153849,0.00021917,2]
[329093562,1718101846920,-500.0,0.00021917,2]
[329093564,1718101846930,-500.0,0.00021917,2]
[329093566,1718101846941,-500.8717857,0.00021917,2]
[329093568,1718101846951,-511.33260365,0.00021917,2]
[329093570,1718101846962,-509.92997119,0.00021917,2]
[329093572,1718101846974,-500.0,0.00021917,2]
[329093574,1718101846985,-524.38823343,0.00021917,2]
[329093576,1718101846996,-179.40204502,0.00021917,2]
[329093578,1718101847007,-531.52128321,0.00021917,2]
[329093580,1718101847017,-540.20277998,0.00021917,2]
[329093582,1718101847029,-500.0,0.00021917,2]
[329093583,1718101847040,-500.0,0.00021917,2]
[329093584,1718101847050,-157.23325445,0.00021917,2]
[329093585,1718101847061,-500.0,0.00021917,2]
[329093586,1718101847072,-502.42349639,0.00021917,2]
[329093587,1718101847083,-500.0,0.00021917,2]
[329093588,1718101847095,-500.0,0.00021917,2]
[329093589,1718101847105,-500.0,0.00021917,2]
[329093590,1718101847116,-500.0,0.00021917,2]
[329093591,1718101847127,-500.0,0.00021917,2]
[329093592,1718101847137,-503.22981358,0.00021917,2]
[329093593,1718101847149,-500.0,0.00021917,2]
[329093594,1718101847162,-500.0,0.00021917,2]
[329093595,1718101847173,-500.0,0.00021917,2]
[329093596,1718101847186,-372.36408006,0.00021917,2]
[329093597,1718101847197,-502.06130994,0.00021917,2]
[329093598,1718101847208,-500.0,0.00021917,2]
[329093599,1718101847220,-500.0,0.00021917,2]
[329093600,1718101847231,-513.97518462,0.00021917,2]
[329093601,1718101847242,-504.29842193,0.00021917,2]
[329093602,1718101847252,-500.0,0.00021917,2]
[329093603,1718101847264,-501.15983677,0.00021917,2]
[329093604,1718101847280,-500.0,0.00021917,2]
[329093605,1718101847291,-500.0,0.00021917,2]
[329093606,1718101847302,-151.0,0.00021917,2]
[329093607,1718101847315,-463.0,0.00021917,2]
[329093608,1718101847326,-500.0,0.00021917,2]
[329093609,1718101847337,-511.04772201,0.00021917,2]
[329093610,1718101847349,-502.5596357,0.00021917,2]
[329093611,1718101847363,-506.92321203,0.00021917,2]
[329093612,1718101847376,-500.0,0.00021917,2]
[329093613,1718101847387,-500.0,0.00021917,2]
[329093614,1718101847398,-500.0,0.00021917,2]
[329093615,1718101847410,-500.97617179,0.00021917,2]
[329093616,1718101847422,-505.63589889,0.00021917,2]
[329093617,1718101847435,-151.0,0.00021917,2]
[329093618,1718101847448,-151.0,0.00021917,2]
[329093619,1718101847461,-500.0,0.00021917,2]
[329093620,1718101847472,-500.0,0.00021917,2]
[329093621,1718101847484,-500.0,0.00021917,2]
[329093622,1718101847495,-500.0,0.00021917,2]
[329093623,1718101847506,-500.0,0.00021917,2]
[329093624,1718101847519,-500.0,0.00021917,2]
[329093625,1718101847531,-500.0,0.00021917,2]
[329093626,1718101847549,-500.0,0.00021917,2]
[329093627,1718101847560,-500.0,0.00021917,2]
[329093628,1718101847571,-500.0,0.00021917,2]
[329093629,1718101847584,-500.0,0.00021917,2]
[329093630,1718101847595,-511.46602592,0.00021917,2]
[329093631,1718101847606,-504.54056394,0.00021917,2]
[329093632,1718101847617,-501.77015956,0.00021917,2]
[329093633,1718101847628,-525.03726627,0.00021917,2]
[329093634,1718101847638,-309.9690031,0.00021917,2]
[329093635,1718101847648,-500.0,0.00021917,2]
[329093636,1718101847660,-500.0,0.00021917,2]
[329093637,1718101847671,-500.0,0.00021917,2]
[329093639,1718101847681,-500.0,0.00021917,2]
[329093641,1718101847692,-500.0,0.00021917,2]
[329093643,1718101847704,-507.83060781,0.00021917,2]
[329093645,1718101847722,-151.0,0.00021917,2]
[329093647,1718101847733,-151.0,0.00021917,2]
[329093649,1718101847744,-500.0,0.00021917,2]
[329093651,1718101847754,-151.0,0.00021917,2]
[329093652,1718101847766,-151.0,0.00021917,2]
[329093653,1718101847778,-500.0,0.00021917,2]